[Event "*** SCC Grand Prix: Titled Tuesday Blitz"]
[Site "Chess.com"]
[Date "2020.07.21"]
[Round "6"]
[White "LyonBeast"]
[Black "Alexander_Zubov"]
[Result "1-0"]
[WhiteElo "3017"]
[BlackElo "2851"]
[TimeControl "180+1"]
[EndTime "11:07:38 PDT"]
[Termination "LyonBeast won by resignation"]

1. Nf3 {[%clk 0:03:00.9]} 1... Nf6 {[%clk 0:02:58.6]} 2. g3 {[%clk 0:02:59.9]}
2... g6 {[%clk 0:02:58]} 3. Bg2 {[%clk 0:03:00.2]} 3... d5 {[%clk 0:02:56.3]} 4.
c4 {[%clk 0:02:59.6]} 4... c6 {[%clk 0:02:55.7]} 5. b3 {[%clk 0:02:57.9]} 5...
Bg7 {[%clk 0:02:54.8]} 6. Bb2 {[%clk 0:02:57.8]} 6... O-O {[%clk 0:02:54.9]} 7.
O-O {[%clk 0:02:57.6]} 7... Bg4 {[%clk 0:02:54.8]} 8. d3 {[%clk 0:02:57.5]} 8...
Nbd7 {[%clk 0:02:51.3]} 9. Nbd2 {[%clk 0:02:57.3]} 9... Re8 {[%clk 0:02:50.1]}
10. h3 {[%clk 0:02:53.1]} 10... Bxf3 {[%clk 0:02:50]} 11. Nxf3 {[%clk 0:02:54]}
11... e6 {[%clk 0:02:46.9]} 12. a3 {[%clk 0:02:43.6]} 12... a5 {[%clk
0:02:46.2]} 13. Qc2 {[%clk 0:02:29.5]} 13... Qb6 {[%clk 0:02:34]} 14. Rab1
{[%clk 0:02:26.2]} 14... Rac8 {[%clk 0:02:21.6]} 15. e3 {[%clk 0:02:20]} 15...
Qa6 {[%clk 0:02:18]} 16. Rfc1 {[%clk 0:02:08.5]} 16... b5 {[%clk 0:02:12.6]} 17.
cxb5 {[%clk 0:01:54.4]} 17... cxb5 {[%clk 0:02:11.2]} 18. Qd2 {[%clk 0:01:55]}
18... Bf8 {[%clk 0:02:00.2]} 19. Bf1 {[%clk 0:01:42.5]} 19... b4 {[%clk
0:01:46]} 20. a4 {[%clk 0:01:37.8]} 20... Rxc1 {[%clk 0:01:32]} 21. Rxc1 {[%clk
0:01:38.7]} 21... Rc8 {[%clk 0:01:32.3]} 22. Nd4 {[%clk 0:01:26.1]} 22... Qb7
{[%clk 0:01:04.3]} 23. Nb5 {[%clk 0:01:21.8]} 23... Rc6 {[%clk 0:00:59.6]} 24.
Bg2 {[%clk 0:01:05.6]} 24... Qc8 {[%clk 0:00:55.4]} 25. Rxc6 {[%clk 0:01:05.7]}
25... Qxc6 {[%clk 0:00:54.9]} 26. e4 {[%clk 0:01:06]} 26... dxe4 {[%clk
0:00:33.3]} 27. dxe4 {[%clk 0:01:06.9]} 27... e5 {[%clk 0:00:33.2]} 28. Qd3
{[%clk 0:00:53.4]} 28... Qe6 {[%clk 0:00:24.9]} 29. Nc7 {[%clk 0:00:49.5]} 29...
Qd6 {[%clk 0:00:23.1]} 30. Nd5 {[%clk 0:00:47.4]} 30... Nxd5 {[%clk 0:00:16.7]}
31. exd5 {[%clk 0:00:48.3]} 31... f6 {[%clk 0:00:15.6]} 32. h4 {[%clk
0:00:47.3]} 32... Nc5 {[%clk 0:00:14.4]} 33. Qc4 {[%clk 0:00:46.5]} 33... Kg7
{[%clk 0:00:11.8]} 34. Bf1 {[%clk 0:00:43.9]} 34... Qb6 {[%clk 0:00:11.1]} 35.
Bc1 {[%clk 0:00:43]} 35... Bd6 {[%clk 0:00:11.3]} 36. Be3 {[%clk 0:00:42.9]}
36... Qc7 {[%clk 0:00:11.9]} 37. h5 {[%clk 0:00:43.2]} 37... g5 {[%clk
0:00:11.4]} 38. Bh3 {[%clk 0:00:39.3]} 38... h6 {[%clk 0:00:10.6]} 39. Qc2
{[%clk 0:00:35]} 39... e4 {[%clk 0:00:10.3]} 40. Bf5 {[%clk 0:00:34]} 40... Qe7
{[%clk 0:00:10.3]} 41. Bd4 {[%clk 0:00:29.3]} 41... Kf7 {[%clk 0:00:09.4]} 42.
Kg2 {[%clk 0:00:25.7]} 42... Kg7 {[%clk 0:00:09.5]} 43. Qc4 {[%clk 0:00:19.4]}
43... Kf8 {[%clk 0:00:08.2]} 44. Qb5 {[%clk 0:00:17.7]} 44... Qc7 {[%clk
0:00:07.9]} 45. Bxf6 {[%clk 0:00:15.2]} 45... Be7 {[%clk 0:00:03.2]} 46. Bxe7+
{[%clk 0:00:11.1]} 46... Qxe7 {[%clk 0:00:04.1]} 47. Qb8+ {[%clk 0:00:10.4]}
47... Kg7 {[%clk 0:00:04.7]} 48. d6 {[%clk 0:00:11]} 48... Qf7 {[%clk
0:00:05.2]} 49. Qc7 {[%clk 0:00:10.1]} 1-0

[Event "*** SCC Grand Prix: Titled Tuesday Blitz"]
[Site "Chess.com"]
[Date "2020.07.21"]
[Round "6"]
[White "yuliagok"]
[Black "petroniy_arbitr"]
[Result "1-0"]
[WhiteElo "2103"]
[BlackElo "2258"]
[TimeControl "180+1"]
[EndTime "11:07:38 PDT"]
[Termination "yuliagok won on time"]

1. d4 {[%clk 0:03:00.9]} 1... d5 {[%clk 0:02:59.9]} 2. c4 {[%clk 0:03:00.6]}
2... c6 {[%clk 0:03:00.2]} 3. Nf3 {[%clk 0:02:58.9]} 3... Nf6 {[%clk 0:03:00.2]}
4. Qb3 {[%clk 0:02:57.6]} 4... dxc4 {[%clk 0:02:57.5]} 5. Qxc4 {[%clk
0:02:57.2]} 5... Bf5 {[%clk 0:02:53.8]} 6. Nc3 {[%clk 0:02:55.3]} 6... e6 {[%clk
0:02:53.5]} 7. Qb3 {[%clk 0:02:53.8]} 7... Qb6 {[%clk 0:02:52.6]} 8. Bg5 {[%clk
0:02:46.3]} 8... Qxb3 {[%clk 0:02:45.8]} 9. axb3 {[%clk 0:02:44.9]} 9... Nbd7
{[%clk 0:02:46.2]} 10. Nd2 {[%clk 0:02:43.1]} 10... Bb4 {[%clk 0:02:41.6]} 11.
f3 {[%clk 0:02:38.7]} 11... O-O {[%clk 0:02:38.6]} 12. e4 {[%clk 0:02:36]} 12...
Bg6 {[%clk 0:02:38.9]} 13. Na2 {[%clk 0:02:32.5]} 13... Be7 {[%clk 0:02:25.2]}
14. Be2 {[%clk 0:02:31]} 14... h6 {[%clk 0:02:25.1]} 15. Be3 {[%clk 0:02:29.2]}
15... Rfd8 {[%clk 0:02:23.7]} 16. O-O {[%clk 0:02:26.9]} 16... c5 {[%clk
0:02:22.9]} 17. dxc5 {[%clk 0:02:21.7]} 17... Bxc5 {[%clk 0:02:21.8]} 18. Bxc5
{[%clk 0:02:13.8]} 18... Nxc5 {[%clk 0:02:22.7]} 19. Rad1 {[%clk 0:02:06.9]}
19... Kf8 {[%clk 0:02:17.7]} 20. Nc3 {[%clk 0:02:04.3]} 20... Ke7 {[%clk
0:02:11]} 21. b4 {[%clk 0:02:02.9]} 21... Ncd7 {[%clk 0:02:06.7]} 22. f4 {[%clk
0:02:00.9]} 22... Nb6 {[%clk 0:01:53.6]} 23. f5 {[%clk 0:01:59.2]} 23... exf5
{[%clk 0:01:39.6]} 24. exf5 {[%clk 0:01:58.2]} 24... Bh5 {[%clk 0:01:39.7]} 25.
Bxh5 {[%clk 0:01:55.7]} 25... Nxh5 {[%clk 0:01:40.1]} 26. Rde1+ {[%clk
0:01:52.1]} 26... Kf8 {[%clk 0:01:39.7]} 27. Nde4 {[%clk 0:01:48.4]} 27... Nc4
{[%clk 0:01:24.7]} 28. b3 {[%clk 0:01:46.3]} 28... Nd2 {[%clk 0:01:23.9]} 29.
Rf2 {[%clk 0:01:41.6]} 29... Nxb3 {[%clk 0:01:18.9]} 30. f6 {[%clk 0:01:34.4]}
30... Nxf6 {[%clk 0:01:15.9]} 31. Nxf6 {[%clk 0:01:33.2]} 31... gxf6 {[%clk
0:01:16.4]} 32. Rxf6 {[%clk 0:01:32.1]} 32... Kg7 {[%clk 0:01:16.2]} 33. Ref1
{[%clk 0:01:31]} 33... Rd7 {[%clk 0:01:16.1]} 34. Ne4 {[%clk 0:01:28]} 34... Nd4
{[%clk 0:00:54.8]} 35. Ng3 {[%clk 0:01:25.8]} 35... a5 {[%clk 0:00:40.9]} 36.
Nh5+ {[%clk 0:01:23.4]} 36... Kg8 {[%clk 0:00:38.4]} 37. bxa5 {[%clk 0:01:21.4]}
37... Rxa5 {[%clk 0:00:36.5]} 38. Rxh6 {[%clk 0:01:16.6]} 38... Kf8 {[%clk
0:00:16.4]} 39. Nf6 {[%clk 0:01:15.4]} 39... Rc7 {[%clk 0:00:10.9]} 40. Rh8+
{[%clk 0:01:10.1]} 40... Ke7 {[%clk 0:00:10.1]} 41. Re8+ {[%clk 0:01:05.9]}
41... Kd6 {[%clk 0:00:09]} 42. Rd1 {[%clk 0:00:58.5]} 42... Kc5 {[%clk 0:00:09]}
43. Re5+ {[%clk 0:00:55.7]} 43... Kb4 {[%clk 0:00:03.1]} 44. Rxa5 {[%clk
0:00:49.4]} 44... Ne2+ {[%clk 0:00:02.6]} 45. Kf2 {[%clk 0:00:42.9]} 45... Kxa5
{[%clk 0:00:02.7]} 46. Nd5 {[%clk 0:00:40.4]} 46... Rc2 {[%clk 0:00:01.2]} 47.
Ke3 {[%clk 0:00:35.6]} 47... Nc3 {[%clk 0:00:01.4]} 48. Ra1+ {[%clk 0:00:30.7]}
48... Kb5 {[%clk 0:00:01.5]} 49. Nc7+ {[%clk 0:00:26]} 49... Kc6 {[%clk
0:00:01.5]} 50. Kd3 {[%clk 0:00:23.4]} 1-0

[Event "*** SCC Grand Prix: Titled Tuesday Blitz"]
[Site "Chess.com"]
[Date "2020.07.21"]
[Round "6"]
[White "Hikaru"]
[Black "vladislavkovalev"]
[Result "1-0"]
[WhiteElo "3267"]
[BlackElo "2902"]
[TimeControl "180+1"]
[EndTime "11:07:42 PDT"]
[Termination "Hikaru won on time"]

1. Nf3 {[%clk 0:03:00.9]} 1... Nf6 {[%clk 0:03:00.5]} 2. b3 {[%clk 0:02:57.5]}
2... g6 {[%clk 0:03:00.5]} 3. d4 {[%clk 0:02:57.3]} 3... Bg7 {[%clk 0:03:00.9]}
4. Bb2 {[%clk 0:02:58]} 4... O-O {[%clk 0:03:01.2]} 5. e3 {[%clk 0:02:58.5]}
5... d6 {[%clk 0:03:00.3]} 6. Be2 {[%clk 0:02:58.4]} 6... b6 {[%clk 0:03:00.6]}
7. O-O {[%clk 0:02:58.5]} 7... Bb7 {[%clk 0:03:01.2]} 8. c4 {[%clk 0:02:58.9]}
8... Nbd7 {[%clk 0:03:01.6]} 9. Qc2 {[%clk 0:02:59.5]} 9... Qe8 {[%clk
0:02:56.5]} 10. Nc3 {[%clk 0:02:56.9]} 10... a6 {[%clk 0:02:55.4]} 11. e4 {[%clk
0:02:55.1]} 11... e5 {[%clk 0:02:42.3]} 12. dxe5 {[%clk 0:02:49.2]} 12... dxe5
{[%clk 0:02:24.1]} 13. Nd5 {[%clk 0:02:44.6]} 13... Rc8 {[%clk 0:02:14.4]} 14.
Rfe1 {[%clk 0:02:39.2]} 14... c6 {[%clk 0:02:04]} 15. Ne3 {[%clk 0:02:20.9]}
15... Qe7 {[%clk 0:02:01.9]} 16. Rad1 {[%clk 0:02:11.8]} 16... Rfd8 {[%clk
0:01:54.1]} 17. Bf1 {[%clk 0:02:11.9]} 17... Ne8 {[%clk 0:01:43.3]} 18. a3
{[%clk 0:02:10.6]} 18... a5 {[%clk 0:01:43.4]} 19. g3 {[%clk 0:02:09.5]} 19...
Nf8 {[%clk 0:01:39]} 20. c5 {[%clk 0:02:00.9]} 20... b5 {[%clk 0:01:25.9]} 21.
a4 {[%clk 0:01:34.6]} 21... bxa4 {[%clk 0:00:58.1]} 22. bxa4 {[%clk 0:01:35.5]}
22... Ne6 {[%clk 0:00:58.7]} 23. Bh3 {[%clk 0:01:05.6]} 23... Nd4 {[%clk
0:00:32.1]} 24. Nxd4 {[%clk 0:00:55.2]} 24... exd4 {[%clk 0:00:33]} 25. Bxc8
{[%clk 0:00:55.5]} 25... Bxc8 {[%clk 0:00:33.9]} 26. Nc4 {[%clk 0:00:54.5]}
26... Qxc5 {[%clk 0:00:33]} 27. Ba3 {[%clk 0:00:54.1]} 27... Qh5 {[%clk
0:00:32.6]} 28. Rd3 {[%clk 0:00:49.5]} 28... Ba6 {[%clk 0:00:27.3]} 29. Rb3
{[%clk 0:00:45.9]} 29... Nf6 {[%clk 0:00:22.2]} 30. f3 {[%clk 0:00:24.9]} 30...
Nd7 {[%clk 0:00:13.6]} 31. Kg2 {[%clk 0:00:17.5]} 31... c5 {[%clk 0:00:05.8]}
32. f4 {[%clk 0:00:13.3]} 32... Nf6 {[%clk 0:00:05]} 33. h3 {[%clk 0:00:13.9]}
33... Bc8 {[%clk 0:00:05]} 34. g4 {[%clk 0:00:14.3]} 34... Nxg4 {[%clk
0:00:03.3]} 35. hxg4 {[%clk 0:00:14.3]} 35... Qxg4+ {[%clk 0:00:04.2]} 36. Rg3
{[%clk 0:00:14]} 36... Qxf4 {[%clk 0:00:04.8]} 37. Rf1 {[%clk 0:00:13.9]} 37...
Qc7 {[%clk 0:00:03.7]} 38. Bc1 {[%clk 0:00:12.5]} 38... Bb7 {[%clk 0:00:03.9]}
39. Bf4 {[%clk 0:00:11.2]} 39... Qc6 {[%clk 0:00:04.5]} 40. Kh2 {[%clk 0:00:11]}
40... Re8 {[%clk 0:00:03.3]} 41. Nxa5 {[%clk 0:00:10.7]} 41... Qd7 {[%clk
0:00:02.7]} 42. Nxb7 {[%clk 0:00:10.7]} 42... Qxb7 {[%clk 0:00:03.6]} 43. Qxc5
{[%clk 0:00:10]} 43... Qxe4 {[%clk 0:00:03.9]} 44. Rg2 {[%clk 0:00:06.8]} 44...
d3 {[%clk 0:00:04.1]} 45. Bg3 {[%clk 0:00:06.7]} 45... Bd4 {[%clk 0:00:04]} 46.
Qb5 {[%clk 0:00:05.8]} 46... Kg7 {[%clk 0:00:03.3]} 47. Rf4 {[%clk 0:00:03.9]}
47... Qe3 {[%clk 0:00:01.8]} 48. Qd5 {[%clk 0:00:04.5]} 48... Bf6 {[%clk
0:00:01.7]} 49. Qf3 {[%clk 0:00:04.5]} 1-0

[Event "*** SCC Grand Prix: Titled Tuesday Blitz"]
[Site "Chess.com"]
[Date "2020.07.21"]
[Round "6"]
[White "Sibelephant"]
[Black "praveenb2002"]
[Result "1-0"]
[WhiteElo "3098"]
[BlackElo "2766"]
[TimeControl "180+1"]
[EndTime "11:07:42 PDT"]
[Termination "Sibelephant won on time"]

1. c4 {[%clk 0:03:00.2]} 1... e5 {[%clk 0:02:59.3]} 2. Nc3 {[%clk 0:03:00.3]}
2... Nc6 {[%clk 0:02:58.6]} 3. Nf3 {[%clk 0:03:00.3]} 3... g6 {[%clk 0:02:56.3]}
4. d4 {[%clk 0:02:58.9]} 4... exd4 {[%clk 0:02:57.2]} 5. Nxd4 {[%clk 0:02:59.5]}
5... Bg7 {[%clk 0:02:56.7]} 6. Nxc6 {[%clk 0:02:59.9]} 6... bxc6 {[%clk
0:02:56.7]} 7. g3 {[%clk 0:03:00.4]} 7... Ne7 {[%clk 0:02:55.6]} 8. Bg2 {[%clk
0:03:00.7]} 8... O-O {[%clk 0:02:55.5]} 9. O-O {[%clk 0:03:01]} 9... d6 {[%clk
0:02:54.8]} 10. Qc2 {[%clk 0:02:52.3]} 10... Rb8 {[%clk 0:02:54.2]} 11. b3
{[%clk 0:02:52.1]} 11... c5 {[%clk 0:02:50.4]} 12. Bb2 {[%clk 0:02:52.3]} 12...
Bb7 {[%clk 0:02:50.1]} 13. Bxb7 {[%clk 0:02:52.4]} 13... Rxb7 {[%clk 0:02:50.4]}
14. Rad1 {[%clk 0:02:52.9]} 14... Nf5 {[%clk 0:02:43.7]} 15. e3 {[%clk
0:02:53.2]} 15... Re8 {[%clk 0:02:43.5]} 16. Nd5 {[%clk 0:02:50.6]} 16... c6
{[%clk 0:02:38]} 17. Bxg7 {[%clk 0:02:43.1]} 17... Kxg7 {[%clk 0:02:38.9]} 18.
Qc3+ {[%clk 0:02:30.8]} 18... f6 {[%clk 0:02:39.1]} 19. Nf4 {[%clk 0:02:30.9]}
19... Qe7 {[%clk 0:02:29.3]} 20. Rd2 {[%clk 0:02:19]} 20... Qe5 {[%clk
0:02:28.4]} 21. Qd3 {[%clk 0:01:49.4]} 21... Rd7 {[%clk 0:02:01.2]} 22. Rfd1
{[%clk 0:01:48.8]} 22... Red8 {[%clk 0:02:01.3]} 23. Qe2 {[%clk 0:01:46.4]}
23... Qe4 {[%clk 0:01:47.7]} 24. Qf1 {[%clk 0:01:37.3]} 24... a5 {[%clk
0:01:37.5]} 25. Qg2 {[%clk 0:01:31.2]} 25... Qxg2+ {[%clk 0:01:37.1]} 26. Kxg2
{[%clk 0:01:31.8]} 26... Kf7 {[%clk 0:01:34.5]} 27. g4 {[%clk 0:01:23.9]} 27...
Ng7 {[%clk 0:01:33]} 28. Ne2 {[%clk 0:01:07.3]} 28... d5 {[%clk 0:00:58.4]} 29.
cxd5 {[%clk 0:01:06.5]} 29... cxd5 {[%clk 0:00:59.3]} 30. Rc2 {[%clk 0:00:42.8]}
30... Ne6 {[%clk 0:00:56.4]} 31. Nc3 {[%clk 0:00:23.1]} 31... d4 {[%clk
0:00:48.7]} 32. Ne4 {[%clk 0:00:19.8]} 32... dxe3 {[%clk 0:00:31.2]} 33. Rxd7+
{[%clk 0:00:19.3]} 33... Rxd7 {[%clk 0:00:32.1]} 34. fxe3 {[%clk 0:00:19.8]}
34... f5 {[%clk 0:00:27.4]} 35. gxf5 {[%clk 0:00:20.1]} 35... gxf5 {[%clk
0:00:28.3]} 36. Nd2 {[%clk 0:00:20.8]} 36... Kf6 {[%clk 0:00:18.8]} 37. Nc4
{[%clk 0:00:20.9]} 37... Ra7 {[%clk 0:00:18.6]} 38. a4 {[%clk 0:00:21.1]} 38...
f4 {[%clk 0:00:16.4]} 39. exf4 {[%clk 0:00:19.5]} 39... Nxf4+ {[%clk 0:00:17.3]}
40. Kf3 {[%clk 0:00:19.8]} 40... Ne6 {[%clk 0:00:15.1]} 41. Ke4 {[%clk
0:00:18.5]} 41... Nd4 {[%clk 0:00:14.4]} 42. Rc3 {[%clk 0:00:19]} 42... Ke6
{[%clk 0:00:14.5]} 43. Rh3 {[%clk 0:00:19.1]} 43... Kf6 {[%clk 0:00:12.1]} 44.
Kd5 {[%clk 0:00:19.3]} 44... Rd7+ {[%clk 0:00:03.1]} 45. Kxc5 {[%clk 0:00:19.4]}
45... Ne6+ {[%clk 0:00:03.5]} 46. Kb6 {[%clk 0:00:19.5]} 46... Rd5 {[%clk
0:00:02.9]} 47. Rh6+ {[%clk 0:00:16.7]} 47... Kf7 {[%clk 0:00:01.3]} 48. Rxh7+
{[%clk 0:00:17]} 48... Kg6 {[%clk 0:00:01.5]} 49. Re7 {[%clk 0:00:17]} 49... Kf6
{[%clk 0:00:02]} 50. Ra7 {[%clk 0:00:15.2]} 50... Rd3 {[%clk 0:00:01.1]} 51.
Nxa5 {[%clk 0:00:15.2]} 1-0

[Event "*** SCC Grand Prix: Titled Tuesday Blitz"]
[Site "Chess.com"]
[Date "2020.07.21"]
[Round "6"]
[White "jerry_77"]
[Black "bugsbunny444"]
[Result "0-1"]
[WhiteElo "2373"]
[BlackElo "2574"]
[TimeControl "180+1"]
[EndTime "11:07:43 PDT"]
[Termination "bugsbunny444 won by checkmate"]

1. e4 {[%clk 0:03:00.9]} 1... c5 {[%clk 0:02:59.2]} 2. Nf3 {[%clk 0:03:00.7]}
2... e6 {[%clk 0:02:59.6]} 3. d4 {[%clk 0:03:01.2]} 3... cxd4 {[%clk 0:03:00.1]}
4. Nxd4 {[%clk 0:03:02.1]} 4... a6 {[%clk 0:03:00.6]} 5. Nc3 {[%clk 0:03:02.5]}
5... Qc7 {[%clk 0:02:59.2]} 6. Be3 {[%clk 0:03:02.6]} 6... Nf6 {[%clk
0:02:59.3]} 7. Bd3 {[%clk 0:03:01.6]} 7... Bb4 {[%clk 0:02:59.5]} 8. Ne2 {[%clk
0:03:01.3]} 8... d5 {[%clk 0:02:58.6]} 9. exd5 {[%clk 0:03:02.2]} 9... Nxd5
{[%clk 0:02:58.5]} 10. Bd2 {[%clk 0:03:02.5]} 10... Nxc3 {[%clk 0:02:42.1]} 11.
Bxc3 {[%clk 0:03:01.1]} 11... Bxc3+ {[%clk 0:02:38.4]} 12. Nxc3 {[%clk 0:03:02]}
12... Qe5+ {[%clk 0:02:34.4]} 13. Be2 {[%clk 0:02:59.8]} 13... b5 {[%clk
0:02:11.8]} 14. O-O {[%clk 0:02:57.6]} 14... Bb7 {[%clk 0:02:11.7]} 15. Bf3
{[%clk 0:02:57.7]} 15... Qc7 {[%clk 0:01:44]} 16. Qd4 {[%clk 0:02:45.1]} 16...
O-O {[%clk 0:01:23.2]} 17. Bxb7 {[%clk 0:02:44.7]} 17... Qxb7 {[%clk 0:01:23.5]}
18. Rfe1 {[%clk 0:02:42.6]} 18... Nc6 {[%clk 0:01:15]} 19. Qh4 {[%clk
0:02:40.7]} 19... Rfd8 {[%clk 0:01:07.6]} 20. Re3 {[%clk 0:02:38.9]} 20... Rd4
{[%clk 0:00:58.8]} 21. Qg5 {[%clk 0:02:33.6]} 21... h6 {[%clk 0:00:51.1]} 22.
Qh5 {[%clk 0:02:30.7]} 22... Rad8 {[%clk 0:00:42.7]} 23. Rg3 {[%clk 0:02:27.7]}
23... Ne7 {[%clk 0:00:42.9]} 24. h3 {[%clk 0:02:13.3]} 24... Nf5 {[%clk
0:00:40.5]} 25. Rg4 {[%clk 0:02:06.6]} 25... Rd2 {[%clk 0:00:26.7]} 26. Rf4
{[%clk 0:01:55.6]} 26... Rxc2 {[%clk 0:00:20.5]} 27. Rd1 {[%clk 0:01:53.6]}
27... Rdd2 {[%clk 0:00:14]} 28. Rxd2 {[%clk 0:01:47.1]} 28... Rxd2 {[%clk
0:00:14.2]} 29. Rxf5 {[%clk 0:01:33.1]} 29... exf5 {[%clk 0:00:12.7]} 30. Qxf5
{[%clk 0:01:34]} 30... Qd7 {[%clk 0:00:12.3]} 31. Qe4 {[%clk 0:01:32.1]} 31...
g6 {[%clk 0:00:10.7]} 32. Qa8+ {[%clk 0:01:31.2]} 32... Kg7 {[%clk 0:00:10]} 33.
Qxa6 {[%clk 0:01:30.5]} 33... Qd4 {[%clk 0:00:10.2]} 34. Qc6 {[%clk 0:01:25.4]}
34... Qxf2+ {[%clk 0:00:10]} 35. Kh1 {[%clk 0:01:25.8]} 35... Rxb2 {[%clk
0:00:08.5]} 36. Qe4 {[%clk 0:01:18.6]} 36... b4 {[%clk 0:00:07.6]} 37. Nd5
{[%clk 0:01:18.2]} 37... Re2 {[%clk 0:00:06.3]} 38. Qg4 {[%clk 0:01:14.2]} 38...
Re1+ {[%clk 0:00:05.9]} 39. Kh2 {[%clk 0:01:14.6]} 39... Qg1+ {[%clk 0:00:05.8]}
40. Kg3 {[%clk 0:01:15.1]} 40... Re6 {[%clk 0:00:04]} 41. Qxb4 {[%clk
0:01:11.2]} 41... Qe1+ {[%clk 0:00:03.6]} 42. Qxe1 {[%clk 0:01:11]} 42... Rxe1
{[%clk 0:00:04.5]} 43. Kf2 {[%clk 0:01:09.1]} 43... Ra1 {[%clk 0:00:04.6]} 44.
Nc3 {[%clk 0:01:09.4]} 44... Rc1 {[%clk 0:00:04.5]} 45. Ne2 {[%clk 0:01:08]}
45... Rc2 {[%clk 0:00:04.7]} 46. a3 {[%clk 0:01:08.4]} 46... Ra2 {[%clk
0:00:05.3]} 47. Kf3 {[%clk 0:01:08.9]} 47... Rxa3+ {[%clk 0:00:05.8]} 48. Kf4
{[%clk 0:01:09.8]} 48... Ra2 {[%clk 0:00:06.4]} 49. Kf3 {[%clk 0:01:10.2]} 49...
f5 {[%clk 0:00:06.1]} 50. Nf4 {[%clk 0:01:09.7]} 50... Rb2 {[%clk 0:00:05.9]}
51. Nd5 {[%clk 0:01:09.1]} 51... Rb3+ {[%clk 0:00:06.1]} 52. Kf4 {[%clk
0:01:08.6]} 52... Kf7 {[%clk 0:00:05.8]} 53. Ke5 {[%clk 0:01:07.2]} 53... Rb5
{[%clk 0:00:05.4]} 54. Kd6 {[%clk 0:01:06.7]} 54... Rb2 {[%clk 0:00:05]} 55. Ke5
{[%clk 0:01:06.6]} 55... Rxg2 {[%clk 0:00:04.4]} 56. Kf4 {[%clk 0:01:04]} 56...
Rh2 {[%clk 0:00:04.2]} 57. Kg3 {[%clk 0:01:04.3]} 57... Rd2 {[%clk 0:00:04.4]}
58. Nf4 {[%clk 0:01:03.7]} 58... Ra2 {[%clk 0:00:04.9]} 59. Nd5 {[%clk
0:01:03.2]} 59... g5 {[%clk 0:00:05.1]} 60. h4 {[%clk 0:01:03.1]} 60... Ra3+
{[%clk 0:00:05.4]} 61. Kg2 {[%clk 0:01:03.6]} 61... Kg6 {[%clk 0:00:05.4]} 62.
Ne7+ {[%clk 0:01:02.3]} 62... Kf6 {[%clk 0:00:05.9]} 63. Ng8+ {[%clk 0:01:02.2]}
63... Kg7 {[%clk 0:00:05.2]} 64. Ne7 {[%clk 0:01:02.5]} 64... f4 {[%clk
0:00:05.5]} 65. h5 {[%clk 0:01:01.4]} 65... Kf6 {[%clk 0:00:04.9]} 66. Ng8+
{[%clk 0:01:01.6]} 66... Kg7 {[%clk 0:00:05.3]} 67. Ne7 {[%clk 0:01:01.7]} 67...
Ra5 {[%clk 0:00:05.2]} 68. Kf3 {[%clk 0:01:01.2]} 68... Re5 {[%clk 0:00:04.1]}
69. Ng6 {[%clk 0:01:01.3]} 69... Re3+ {[%clk 0:00:03.7]} 70. Kg4 {[%clk
0:01:00.3]} 70... Kf6 {[%clk 0:00:04.6]} 71. Nf8 {[%clk 0:00:59.1]} 71... Rg3#
{[%clk 0:00:04.7]} 0-1

[Event "*** SCC Grand Prix: Titled Tuesday Blitz"]
[Site "Chess.com"]
[Date "2020.07.21"]
[Round "6"]
[White "platy3"]
[Black "FontVella8"]
[Result "1-0"]
[WhiteElo "2767"]
[BlackElo "2590"]
[TimeControl "180+1"]
[EndTime "11:07:44 PDT"]
[Termination "platy3 won by resignation"]

1. e4 {[%clk 0:03:00.9]} 1... c6 {[%clk 0:02:59.6]} 2. Nf3 {[%clk 0:02:59.3]}
2... d5 {[%clk 0:03:00]} 3. d3 {[%clk 0:02:59.9]} 3... g6 {[%clk 0:02:58.3]} 4.
Qe2 {[%clk 0:02:59.1]} 4... Bg7 {[%clk 0:02:58.4]} 5. g3 {[%clk 0:02:59.4]} 5...
Nf6 {[%clk 0:02:57]} 6. Bg2 {[%clk 0:02:58.9]} 6... O-O {[%clk 0:02:57.1]} 7.
O-O {[%clk 0:02:59.5]} 7... Bg4 {[%clk 0:02:52.5]} 8. h3 {[%clk 0:02:59.1]} 8...
Bxf3 {[%clk 0:02:52.8]} 9. Bxf3 {[%clk 0:03:00]} 9... e6 {[%clk 0:02:52.3]} 10.
Bg2 {[%clk 0:03:00]} 10... Nbd7 {[%clk 0:02:52.5]} 11. f4 {[%clk 0:02:59.7]}
11... a5 {[%clk 0:02:50.1]} 12. Nd2 {[%clk 0:02:57.8]} 12... a4 {[%clk
0:02:40.8]} 13. a3 {[%clk 0:02:56.5]} 13... b5 {[%clk 0:01:58.5]} 14. Kh2 {[%clk
0:02:54.5]} 14... Qb6 {[%clk 0:01:57.8]} 15. Nf3 {[%clk 0:02:51]} 15... c5
{[%clk 0:01:49.8]} 16. e5 {[%clk 0:02:45.3]} 16... Ne8 {[%clk 0:01:48.7]} 17. c3
{[%clk 0:02:46]} 17... Nc7 {[%clk 0:01:39.1]} 18. d4 {[%clk 0:02:45.5]} 18...
Qa6 {[%clk 0:01:25.7]} 19. Be3 {[%clk 0:02:42.5]} 19... b4 {[%clk 0:01:21.3]}
20. Qxa6 {[%clk 0:02:38.7]} 20... Rxa6 {[%clk 0:01:20]} 21. dxc5 {[%clk
0:02:26.9]} 21... bxc3 {[%clk 0:01:19.4]} 22. bxc3 {[%clk 0:02:27.8]} 22... Rc6
{[%clk 0:01:14.7]} 23. Rfb1 {[%clk 0:02:15.6]} 23... Na6 {[%clk 0:01:07.1]} 24.
c4 {[%clk 0:01:53.3]} 24... dxc4 {[%clk 0:00:32.5]} 25. Nd2 {[%clk 0:01:53]}
25... Rc7 {[%clk 0:00:31]} 26. c6 {[%clk 0:01:52.2]} 26... c3 {[%clk 0:00:27.7]}
27. Ne4 {[%clk 0:01:41.5]} 27... Ndb8 {[%clk 0:00:16.7]} 28. Nxc3 {[%clk
0:01:29.1]} 28... Nxc6 {[%clk 0:00:16.8]} 29. Nb5 {[%clk 0:01:29.1]} 29... Rcc8
{[%clk 0:00:13.2]} 30. Nd6 {[%clk 0:01:29.4]} 30... Rc7 {[%clk 0:00:07.1]} 31.
Bb6 {[%clk 0:01:28.8]} 31... Nxe5 {[%clk 0:00:06.6]} 32. Bxc7 {[%clk 0:01:24.6]}
32... Nxc7 {[%clk 0:00:07]} 33. fxe5 {[%clk 0:01:24.5]} 33... Bxe5 {[%clk
0:00:07.4]} 34. Nc4 {[%clk 0:01:17.5]} 34... Bxa1 {[%clk 0:00:07.3]} 35. Rxa1
{[%clk 0:01:18.4]} 35... Nb5 {[%clk 0:00:06]} 36. Rb1 {[%clk 0:01:16.8]} 36...
Rc8 {[%clk 0:00:02.3]} 37. Rb4 {[%clk 0:01:11.4]} 37... Rc5 {[%clk 0:00:01.5]}
38. Rxa4 {[%clk 0:01:11]} 38... e5 {[%clk 0:00:01.4]} 39. Rb4 {[%clk 0:01:06]}
39... Kg7 {[%clk 0:00:01.6]} 40. a4 {[%clk 0:01:05.7]} 40... Nc7 {[%clk
0:00:01.2]} 41. a5 {[%clk 0:01:02.2]} 41... f5 {[%clk 0:00:01]} 42. Ra4 {[%clk
0:00:55.6]} 42... e4 {[%clk 0:00:01.5]} 43. Bf1 {[%clk 0:00:53.3]} 43... Kf6
{[%clk 0:00:01.4]} 44. a6 {[%clk 0:00:53.9]} 44... Na8 {[%clk 0:00:01.6]} 45. a7
{[%clk 0:00:50.8]} 45... Rc7 {[%clk 0:00:01.9]} 46. Nd6 {[%clk 0:00:47.4]} 46...
Ke5 {[%clk 0:00:01.4]} 47. Nb5 {[%clk 0:00:44]} 47... Rc2+ {[%clk 0:00:01.6]}
48. Kg1 {[%clk 0:00:43.6]} 48... e3 {[%clk 0:00:02.1]} 49. Ra3 {[%clk
0:00:38.1]} 49... f4 {[%clk 0:00:02]} 50. gxf4+ {[%clk 0:00:37.5]} 50... Kxf4
{[%clk 0:00:02.9]} 51. Nd4 {[%clk 0:00:37.9]} 51... Rd2 {[%clk 0:00:03]} 52.
Ne2+ {[%clk 0:00:37.1]} 52... Kf3 {[%clk 0:00:03.3]} 53. Bg2+ {[%clk 0:00:31.4]}
53... Kxe2 {[%clk 0:00:03.4]} 54. Bxa8 {[%clk 0:00:32]} 54... Rd1+ {[%clk
0:00:02.3]} 55. Kg2 {[%clk 0:00:32]} 55... Rd2 {[%clk 0:00:02.2]} 56. Bf3+
{[%clk 0:00:27.4]} 56... Ke1+ {[%clk 0:00:02.6]} 57. Kg3 {[%clk 0:00:27.9]}
57... e2 {[%clk 0:00:03]} 58. a8=Q {[%clk 0:00:22.2]} 58... Rd3 {[%clk
0:00:03.5]} 59. Rxd3 {[%clk 0:00:20.8]} 1-0